fUST/lending_fUST_20250730
["ID","MTS","AMOUNT","RATE_DAILY","PERIOD"]
[376077478,1753855835358,-794.02,0.00018962,2]
[376077479,1753855835368,-460.0,0.00018962,2]
[376077480,1753855835377,-1951.01,0.00019131,2]
[376077481,1753855835387,-1237.63,0.00019131,2]
[376077482,1753855835396,-667.14,0.00019131,2]
[376077483,1753855835406,-866.96,0.00019131,2]
[376077484,1753855835415,-460.0,0.00019131,2]
[376077485,1753855835424,-304.41959092,0.00019131,2]
[376077486,1753855835434,-543.27,0.00019131,2]
[376077487,1753855835443,-460.0,0.00019131,2]
[376077488,1753855835452,-492.01127917,0.00019132,2]
[376077489,1753855835465,-460.0,0.00019132,2]
[376077490,1753855835476,-460.0,0.00019132,2]
[376077491,1753855835486,-2251.79,0.00019132,2]
[376077492,1753855835500,-460.0,0.00019132,2]
[376077493,1753855835511,-460.0,0.00019132,2]
[376077494,1753855835520,-460.0,0.00019132,2]
[376077495,1753855835529,-460.0,0.00019132,2]
[376077496,1753855835539,-460.0,0.00019132,2]
[376077497,1753855835548,-460.0,0.00019132,2]
[376077498,1753855835558,-460.0,0.00019132,2]
[376077499,1753855835567,-460.0,0.00019132,2]
[376077500,1753855835576,-460.0,0.00019132,2]
[376077501,1753855835586,-1552.44,0.00019132,2]
[376077502,1753855835714,-460.0,0.00019132,2]
[376077503,1753855835724,-460.0,0.00019132,2]
[376077504,1753855835734,-460.0,0.00019132,2]
[376077505,1753855835744,-460.0,0.00019132,2]
[376077506,1753855835753,-543.99,0.00019132,2]
[376077507,1753855835763,-460.0,0.00019132,2]
[376077508,1753855835772,-154.60335011,0.00019133,2]
[376077509,1753855835781,-460.0,0.00019133,2]
[376077510,1753855835791,-460.0,0.00019133,2]
[376077511,1753855835803,-460.0,0.00019133,2]
[376077512,1753855835812,-460.0,0.00019133,2]
[376077513,1753855835822,-460.0,0.00019133,2]
[376077514,1753855835831,-460.0,0.00019133,2]
[376077515,1753855835840,-460.0,0.00019133,2]
[376077516,1753855835851,-460.0,0.00019133,2]
[376077517,1753855835860,-460.0,0.00019133,2]
[376077518,1753855835870,-339.28593122,0.00019133,2]
[376077519,1753855835880,-460.0,0.00019133,2]
[376077520,1753855835891,-460.0,0.00019133,2]
[376077521,1753855835900,-460.0,0.00019133,2]
[376077522,1753855835911,-460.0,0.00019133,2]
[376077523,1753855835921,-460.0,0.00019133,2]
[376077524,1753855835931,-460.0,0.00019133,2]
[376077525,1753855835941,-460.0,0.00019134,2]
[376077526,1753855835951,-460.0,0.00019134,2]
[376077527,1753855835960,-460.0,0.00019134,2]
[376077528,1753855835969,-467.89524988,0.00019134,2]
[376077529,1753855835978,-460.0,0.00019134,2]
[376077530,1753855835987,-460.0,0.00019134,2]
[376077531,1753855835997,-460.0,0.00019134,2]
[376077532,1753855836006,-460.0,0.00019134,2]
[376077533,1753855836016,-1147.64,0.00019134,2]
[376077534,1753855836026,-460.0,0.00019135,2]
[376077535,1753855836035,-3856.27,0.00019135,2]
[376077536,1753855836045,-1054.42,0.00019135,2]
[376077537,1753855836054,-810.88,0.00019135,2]
[376077538,1753855836064,-251.58792683,0.00019136,2]
[376077539,1753855836073,-500.0,0.00019164,2]
[376077540,1753855836083,-463.3152295,0.00019232,2]
[376077541,1753855836094,-460.0,0.00019232,2]
[376077542,1753855836104,-461.6628105,0.00019232,2]
[376077543,1753855836114,-460.0,0.00019232,2]
[376077544,1753855836123,-460.0,0.00019232,2]
[376077545,1753855836133,-576.86189077,0.00019232,2]
[376077546,1753855836143,-460.0,0.00019232,2]
[376077547,1753855836152,-460.0,0.00019232,2]
[376077548,1753855836163,-460.0,0.00019232,2]
[376077549,1753855836172,-462.8531057,0.00019232,2]
[376077550,1753855836183,-464.21183541,0.00019232,2]
[376077551,1753855836193,-519.19735321,0.00019232,2]
[376077552,1753855836203,-460.0,0.00019232,2]
[376077553,1753855836212,-460.0,0.00019232,2]
[376077554,1753855836222,-763.13,0.00019232,2]
[376077555,1753855836231,-460.0,0.00019232,2]
[376077556,1753855836241,-460.0,0.00019232,2]
[376077557,1753855836250,-460.0,0.00019232,2]
[376077558,1753855836260,-200.0,0.00019233,15]
[376077559,1753855836270,-200.0,0.00019233,15]
[376077560,1753855836280,-200.0,0.00019233,15]
[376077561,1753855836289,-200.0,0.00019233,15]
[376077562,1753855836299,-200.0,0.00019233,15]
[376077563,1753855836309,-200.0,0.00019233,15]
[376077564,1753855836319,-200.0,0.00019233,15]
[376077565,1753855836329,-200.0,0.00019233,15]
[376077566,1753855836338,-200.0,0.00019233,15]
[376077567,1753855836348,-200.0,0.00019233,15]
[376077568,1753855836357,-200.0,0.00019233,15]
[376077569,1753855836366,-200.0,0.00019233,15]
[376077570,1753855836376,-200.0,0.00019233,15]
[376077571,1753855836386,-200.0,0.00019233,15]
[376077572,1753855836395,-200.0,0.00019233,15]
[376077573,1753855836405,-200.0,0.00019233,15]
[376077574,1753855836415,-460.0,0.00019236,2]
[376077575,1753855836424,-262.92741356,0.00019236,2]
[376077576,1753855836439,-197.07258644,0.00019236,2]
[376077577,1753855836448,-388.67655585,0.00019236,2]
[376077578,1753855836460,-1188.76344415,0.00019236,2]
[376077579,1753855836470,-460.0,0.00019236,2]
[376077580,1753855836479,-859.47,0.00019236,2]
[376077581,1753855836489,-794.02,0.00019236,2]
[376077582,1753855836498,-460.0,0.00019236,2]
[376077583,1753855836508,-293.05688467,0.00019255,2]
[376077584,1753855836518,-408.40050324,0.00019405,2]
[376077607,1753855838953,-460.0,0.00018858,2]
[376077609,1753855838963,-1542.60949676,0.00019405,2]
[376077611,1753855838973,-1237.63,0.00019405,2]
[376077612,1753855838982,-466.58925515,0.00019405,2]
[376077615,1753855838993,-200.55074485,0.00019405,2]
[376077617,1753855839003,-866.96,0.00019405,2]
[376077619,1753855839012,-389.53291621,0.00019405,2]
[376077621,1753855839021,-385.25633894,0.00019405,2]
[376077623,1753855839033,-158.01366106,0.00019405,2]
[376077625,1753855839042,-2251.79,0.00019406,2]
[376077627,1753855839051,-460.0,0.00019406,2]
[376077629,1753855839060,-460.0,0.00019406,2]
[376077631,1753855839069,-460.0,0.00019406,2]
[376077633,1753855839079,-1552.44,0.00019406,2]
[376077635,1753855839089,-476.63989078,0.00019406,2]
[376077637,1753855839098,-460.0,0.00019406,2]
[376077639,1753855839107,-460.0,0.00019406,2]
[376077641,1753855839117,-460.0,0.00019406,2]
[376077643,1753855839125,-262.04296025,0.00019406,2]
[376077650,1753855839185,-197.95703975,0.00019406,2]
[376077652,1753855839194,-203.57896025,0.00019407,2]
[376077839,1753855840955,-429.42624312,0.00018858,2]
[376077841,1753855840967,-45.8042019,0.00018858,2]
[376077842,1753855840976,-256.42103975,0.00019407,2]
[376077843,1753855840986,-397.77475835,0.00019407,2]
[376078193,1753855844578,-62.22524165,0.00019407,2]
[376078195,1753855844588,-460.0,0.00019407,2]
[376078197,1753855844604,-254.13554026,0.00019407,2]
[376078199,1753855844622,-460.0,0.00019407,2]
[376078201,1753855844641,-460.0,0.00019407,2]
[376078203,1753855844650,-460.0,0.00019407,2]
[376078205,1753855844659,-460.0,0.00019408,2]
[376078207,1753855844668,-460.0,0.00019408,2]
[376078209,1753855844678,-460.0,0.00019408,2]
[376078211,1753855844688,-460.0,0.00019408,2]
[376078213,1753855844697,-1147.64,0.00019408,2]
[376078215,1753855844706,-1454.40657919,0.00019409,2]
[376081486,1753855879268,153.882257,0.00023,30]
[376082843,1753856196862,202.339398,0.00013699,2]
[376082845,1753856246225,155.79919792,0.00018757,2]
[376082852,1753856407314,155.79919792,0.00018756,2]
[376082855,1753856477823,153.882257,0.00023,30]
[376082888,1753856908463,713.75149322,0.00018758,2]
[376083558,1753857038283,-434.72,0.00018848,3]
[376083559,1753857038293,-300.0,0.00018853,2]
[376083560,1753857038302,-480.0,0.00018853,2]
[376083561,1753857038311,-460.0,0.00018854,2]
[376083562,1753857038321,-460.0,0.00018854,2]
[376083564,1753857038331,-446.62696623,0.00018854,2]
[376083565,1753857038340,-460.0,0.00018854,2]
[376083567,1753857038350,-460.0,0.00018854,2]
[376083570,1753857038359,-460.0,0.00018854,2]
[376083572,1753857038369,-460.0,0.00018854,2]
[376083574,1753857038378,-460.0,0.00018854,2]
[376083575,1753857038387,-460.0,0.00018854,2]
[376083578,1753857038397,-460.0,0.00018854,2]
[376083580,1753857038408,-460.0,0.00018854,2]
[376083581,1753857038418,-460.0,0.00018854,2]
[376083583,1753857038427,-463.53273965,0.00018854,2]
[376083585,1753857038437,-348.62757247,0.00018854,2]
[376083587,1753857038447,-460.0,0.00018854,2]
[376083589,1753857038456,-460.0,0.00018854,2]
[376083591,1753857038466,-460.0,0.00018854,2]
[376083593,1753857038475,-460.0,0.00018854,2]
[376083595,1753857038485,-462.25309012,0.00018854,2]
[376083597,1753857038495,-460.0,0.00018854,2]
[376083598,1753857038504,-460.0,0.00018854,2]
[376083600,1753857038513,-1270.42,0.00018854,2]
[376083602,1753857038523,-460.0,0.00018854,2]
[376083604,1753857038533,-461.62415966,0.00018854,2]
[376083606,1753857038542,-460.0,0.00018854,2]
[376083608,1753857038552,-460.0,0.00018854,2]
[376083609,1753857038561,-460.0,0.00018854,2]
[376083610,1753857038570,-460.0,0.00018854,2]
[376083611,1753857038579,-460.0,0.00018854,2]
[376083613,1753857038588,-293.46693645,0.00018854,2]
[376083615,1753857038597,-460.0,0.00018854,2]
[376083617,1753857038605,-460.0,0.00018854,2]
[376083619,1753857038615,-460.0,0.00018854,2]
[376083622,1753857038624,-460.85897276,0.00018854,2]
[376083625,1753857038633,-460.0,0.00018855,2]
[376083628,1753857038642,-460.0,0.00018855,2]
[376083629,1753857038652,-460.0,0.00018855,2]
[376083631,1753857038663,-460.0,0.00018855,2]
[376083634,1753857038672,-223.42785374,0.00018855,2]
[376083635,1753857038681,-460.0,0.00018855,2]
[376083637,1753857038690,-460.0,0.00018855,2]
[376083639,1753857038699,-460.0,0.00018855,2]
[376083641,1753857038709,-460.0,0.00018855,2]
[376083643,1753857038718,-460.0,0.00018855,2]
[376083645,1753857038727,-247.90088175,0.00018855,2]
[376083646,1753857038736,-460.0,0.00018855,2]
[376083647,1753857038746,-460.0,0.00018855,2]
[376083648,1753857038755,-460.0,0.00018855,2]
[376083649,1753857038764,-460.0,0.00018855,2]
[376083650,1753857038774,-460.0,0.00018855,2]
[376083651,1753857038784,-460.0,0.00018855,2]
[376083652,1753857038794,-460.0,0.00018855,2]
[376083653,1753857038803,-460.0,0.00018855,2]
[376083654,1753857038812,-460.0,0.00018855,2]
[376083655,1753857038821,-460.0,0.00018855,2]
[376083656,1753857038831,-460.0,0.00018855,2]
[376083657,1753857038841,-461.53315871,0.00018855,2]
[376083658,1753857038850,-464.2752139,0.00018855,2]
[376083659,1753857038859,-254.87851502,0.00018855,2]
[376083660,1753857038869,-460.0,0.00018855,2]
[376083661,1753857038880,-460.0,0.00018855,2]
[376083662,1753857038890,-460.0,0.00018855,2]
[376083663,1753857038899,-460.0,0.00018855,2]
[376083664,1753857038908,-460.0,0.00018855,2]
[376083665,1753857038918,-471.58160175,0.00018855,2]
[376083666,1753857038927,-460.0,0.00018855,2]
[376083667,1753857038936,-460.0,0.00018855,2]
[376083668,1753857038945,-460.0,0.00018855,2]
[376083669,1753857038954,-460.0,0.00018855,2]
[376083670,1753857039110,-460.0,0.00018855,2]
[376083672,1753857039120,-460.0,0.00018855,2]
[376083674,1753857039129,-500.0,0.00018855,2]
[376083676,1753857039139,-460.0,0.00018855,2]
[376083678,1753857039153,-460.0,0.00018855,2]
[376083680,1753857039164,-460.0,0.00018855,2]
[376083681,1753857039174,-460.0,0.00018855,2]
[376083682,1753857039183,-460.0,0.00018855,2]
[376083683,1753857039193,-460.0,0.00018855,2]
[376083684,1753857039203,-460.0,0.00018855,2]
[376083685,1753857039212,-460.0,0.00018855,2]
[376083686,1753857039223,-460.0,0.00018855,2]
[376083687,1753857039232,-460.0,0.00018855,2]
[376083688,1753857039242,-3272.8,0.00018855,2]
[376083689,1753857039252,-460.0,0.00018855,2]
[376083690,1753857039261,-460.0,0.00018855,2]
[376083691,1753857039271,-460.0,0.00018855,2]
[376083692,1753857039281,-460.0,0.00018855,2]
[376083693,1753857039291,-460.0,0.00018855,2]
[376083694,1753857039301,-460.0,0.00018855,2]
[376083695,1753857039311,-460.0,0.00018855,2]
[376083696,1753857039321,-460.0,0.00018855,2]
[376083697,1753857039331,-460.0,0.00018855,2]
[376083698,1753857039340,-460.0,0.00018855,2]
[376083699,1753857039350,-460.0,0.00018855,2]
[376083700,1753857039359,-460.0,0.00018855,2]
[376083701,1753857039369,-460.0,0.00018855,2]
[376083702,1753857039378,-460.0,0.00018855,2]
[376083703,1753857039388,-460.0,0.00018855,2]
[376083704,1753857039397,-460.0,0.00018855,2]
[376083705,1753857039406,-460.0,0.00018855,2]
[376083706,1753857039417,-460.0,0.00018855,2]
[376083707,1753857039427,-650.29,0.00018855,2]
[376083708,1753857039436,-460.0,0.00018855,2]
[376083709,1753857039446,-460.0,0.00018855,2]
[376083710,1753857039455,-460.0,0.00018855,2]
[376083711,1753857039465,-460.0,0.00018855,2]
[376083712,1753857039475,-460.0,0.00018855,2]
[376083713,1753857039484,-460.0,0.00018855,2]
[376083714,1753857039493,-460.0,0.00018855,2]
[376083715,1753857039502,-460.0,0.00018855,2]
[376083716,1753857039512,-460.0,0.00018855,2]
[376083717,1753857039522,-460.0,0.00018855,2]
[376083718,1753857039533,-2484.25,0.00018855,2]
[376083719,1753857039544,-460.0,0.00018855,2]
[376083720,1753857039553,-460.0,0.00018855,2]
[376083721,1753857039563,-460.0,0.00018855,2]
[376083722,1753857039573,-460.0,0.00018855,2]
[376083723,1753857039583,-460.0,0.00018855,2]
[376083724,1753857039593,-460.0,0.00018855,2]
[376083725,1753857039602,-460.0,0.00018855,2]
[376083726,1753857039611,-460.0,0.00018855,2]
[376083727,1753857039621,-378.79322116,0.00018855,2]
[376083728,1753857039630,-460.0,0.00018855,2]
[376083729,1753857039639,-460.0,0.00018855,2]
[376083730,1753857039648,-460.0,0.00018855,2]
[376083731,1753857039660,-460.0,0.00018855,2]
[376083732,1753857039669,-460.0,0.00018855,2]
[376083733,1753857039679,-460.0,0.00018855,2]
[376083734,1753857039688,-460.0,0.00018855,2]
[376083735,1753857039698,-460.0,0.00018855,2]
[376083736,1753857039707,-460.0,0.00018855,2]
[376083737,1753857039716,-1742.93,0.00018855,2]
[376083738,1753857039726,-460.0,0.00018855,2]
[376083739,1753857039735,-460.0,0.00018855,2]
[376083740,1753857039745,-1935.42,0.00018855,2]
[376083741,1753857039754,-460.0,0.00018855,2]
[376083742,1753857039763,-460.0,0.00018855,2]
[376083743,1753857039773,-460.0,0.00018855,2]
[376083744,1753857039782,-490.47,0.00018855,2]
[376083745,1753857039791,-460.0,0.00018855,2]
[376083746,1753857039801,-460.0,0.00018855,2]
[376083747,1753857039811,-460.0,0.00018855,2]
[376083748,1753857039820,-460.0,0.00018855,2]
[376083749,1753857039829,-460.0,0.00018855,2]
[376083750,1753857039839,-969.02,0.00018855,2]
[376083751,1753857039848,-460.0,0.00018855,2]
[376083752,1753857039857,-460.0,0.00018855,2]
[376083753,1753857039867,-460.0,0.00018855,2]
[376083754,1753857039876,-460.0,0.00018855,2]
[376083755,1753857039885,-460.0,0.00018855,2]
[376083756,1753857039895,-460.0,0.00018855,2]
[376083757,1753857039904,-460.0,0.00018855,2]
[376083758,1753857039914,-460.0,0.00018855,2]
[376083759,1753857039924,-460.0,0.00018855,2]
[376083760,1753857039934,-460.0,0.00018855,2]
[376083761,1753857039943,-460.0,0.00018855,2]
[376083762,1753857039953,-460.0,0.00018855,2]
[376083763,1753857039962,-460.0,0.00018855,2]
[376083764,1753857039972,-460.0,0.00018855,2]
[376083765,1753857039981,-460.0,0.00018855,2]
[376083766,1753857039990,-282.93,0.00018855,2]
[376083767,1753857039999,-460.0,0.00018855,2]
[376083768,1753857040008,-460.0,0.00018855,2]
[376083769,1753857040018,-460.0,0.00018855,2]
[376083770,1753857040027,-460.0,0.00018855,2]
[376083771,1753857040037,-460.0,0.00018855,2]
[376083772,1753857040046,-460.0,0.00018855,2]
[376083773,1753857040055,-460.0,0.00018855,2]
[376083774,1753857040065,-611.96,0.00018855,2]
[376083775,1753857040075,-460.0,0.00018855,2]
[376083776,1753857040084,-460.0,0.00018856,2]
[376083777,1753857040093,-462.82155513,0.00018856,2]
[376083778,1753857040103,-460.0,0.00018856,2]
[376083779,1753857040112,-460.0,0.00018856,2]
[376083780,1753857040121,-460.0,0.00018856,2]
[376083781,1753857040131,-460.0,0.00018856,2]
[376083782,1753857040144,-446.93787715,0.00018856,2]
[376083783,1753857040154,-460.0,0.00018856,2]
[376083784,1753857040165,-469.79,0.00018856,2]
[376083785,1753857040174,-460.0,0.00018856,2]
[376083786,1753857040185,-348.43247635,0.00018856,2]
[376083787,1753857040194,-460.0,0.00018856,2]
[376083788,1753857040204,-460.0,0.00018856,2]
[376083789,1753857040213,-460.0,0.00018856,2]
[376083790,1753857040227,-460.0,0.00018856,2]
[376083791,1753857040237,-576.04021389,0.00018856,2]
[376083792,1753857040247,-460.73688413,0.00018856,2]
[376083793,1753857040256,-460.0,0.00018856,2]
[376083794,1753857040265,-1202.66,0.00018856,2]
[376083795,1753857040275,-460.0,0.00018856,2]
[376083796,1753857040285,-460.0,0.00018856,2]
[376083797,1753857040294,-460.0,0.00018856,2]
[376083798,1753857040304,-460.0,0.00018856,2]
[376083799,1753857040313,-460.0,0.00018856,2]
[376083800,1753857040322,-460.0,0.00018856,2]
[376083801,1753857040332,-460.0,0.00018856,2]
[376083802,1753857040341,-460.0,0.00018856,2]
[376083803,1753857040351,-460.0,0.00018856,2]
[376083804,1753857040361,-460.0,0.00018856,2]
[376083805,1753857040371,-460.0,0.00018856,2]
[376083806,1753857040380,-500.0,0.00018856,2]
[376083807,1753857040390,-460.0,0.00018856,2]
[376083808,1753857040399,-460.0,0.00018856,2]
[376083809,1753857040410,-460.0,0.00018856,2]
[376083810,1753857040419,-500.0,0.00018856,2]
[376083811,1753857040429,-499.49,0.00018856,2]
[376083812,1753857040438,-460.0,0.00018856,2]
[376083813,1753857040447,-460.0,0.00018856,2]
[376083814,1753857040457,-460.0,0.00018856,2]
[376083815,1753857040466,-474.16,0.00018856,2]
[376083816,1753857040476,-460.0,0.00018856,2]
[376083817,1753857040485,-460.0,0.00018856,2]
[376083818,1753857040495,-463.61940103,0.00018856,2]
[376083819,1753857040504,-479.6064593,0.00018856,2]
[376083820,1753857040514,-414.47175139,0.00018856,2]
[376083821,1753857040523,-462.57606515,0.00018856,2]
[376083823,1753857040532,-460.0,0.00018856,2]
[376083825,1753857040543,-460.0,0.00018856,2]
[376083827,1753857040552,-716.27,0.00018856,2]
[376083829,1753857040562,-460.0,0.00018856,2]
[376083831,1753857040571,-460.0,0.00018856,2]
[376083832,1753857040580,-463.98745845,0.00018856,2]
[376083833,1753857040590,-460.0,0.00018856,2]
[376083834,1753857040600,-460.0,0.00018856,2]
[376083835,1753857040609,-460.0,0.00018856,2]
[376083836,1753857040619,-460.0,0.00018856,2]
[376083838,1753857040627,-460.0,0.00018856,2]
[376083840,1753857040636,-460.0,0.00018856,2]
[376083842,1753857040647,-615.49,0.00018856,2]
[376083844,1753857040668,-460.0,0.00018856,2]
[376083846,1753857040677,-466.28837576,0.00018856,2]
[376083849,1753857040693,-500.0,0.00018856,2]
[376083851,1753857040706,-462.41076621,0.00018856,2]
[376083853,1753857040715,-460.0,0.00018856,2]
[376083855,1753857040725,-466.7941392,0.00018856,2]
[376083857,1753857040735,-460.0,0.00018856,2]
[376083859,1753857040745,-462.55206188,0.00018856,2]
[376083862,1753857040754,-460.0,0.00018856,2]
[376083864,1753857040764,-460.0,0.00018856,2]
[376083865,1753857040773,-460.0,0.00018856,2]
[376083868,1753857040783,-460.0,0.00018856,2]
[376083870,1753857040792,-460.0,0.00018856,2]
[376083872,1753857040802,-460.0,0.00018856,2]
[376083873,1753857040811,-480.81710326,0.00018856,2]
[376083876,1753857040821,-460.0,0.00018856,2]
[376083878,1753857040831,-460.0,0.00018856,2]
[376083880,1753857040841,-461.54402447,0.00018857,2]
[376083882,1753857040850,-460.0,0.00018857,2]
[376083884,1753857040860,-460.0,0.00018857,2]
[376083886,1753857040869,-460.0,0.00018857,2]
[376083888,1753857040879,-535.25580152,0.00018857,2]
[376083890,1753857040893,-460.0,0.00018857,2]
[376083892,1753857040903,-460.0,0.00018857,2]
[376083894,1753857040913,-460.0,0.00018857,2]
[376083896,1753857040923,-460.0,0.00018857,2]
[376083898,1753857040932,-460.0,0.00018857,2]
[376083900,1753857040942,-460.0,0.00018857,2]
[376083902,1753857040952,-460.0,0.00018857,2]
[376083904,1753857040961,-460.0,0.00018857,2]
[376083906,1753857040971,-460.0,0.00018857,2]
[376083908,1753857040981,-460.0,0.00018857,2]
[376083910,1753857040991,-460.0,0.00018857,2]
[376083913,1753857041001,-460.0,0.00018857,2]
[376083914,1753857041011,-460.0,0.00018857,2]
[376083917,1753857041021,-460.0,0.00018857,2]
[376083918,1753857041031,-460.0,0.00018857,2]
[376083920,1753857041040,-166.20353067,0.00018857,2]
[376083923,1753857041050,-460.0,0.00018857,2]
[376083925,1753857041060,-460.0,0.00018857,2]
[376083927,1753857041070,-406.77951021,0.00018857,2]
[376083929,1753857041079,-273.28962866,0.00018857,2]
[376083931,1753857041088,-307.42883496,0.00018857,2]
[376083933,1753857041098,-460.0,0.00018857,2]
[376083935,1753857041108,-460.0,0.00018857,2]
[376083937,1753857041117,-460.0,0.00018857,2]
[376083939,1753857041127,-460.0,0.00018857,2]
[376083941,1753857041137,-460.0,0.00018857,2]
[376083943,1753857041151,-460.0,0.00018857,2]
[376083945,1753857041160,-522.30280774,0.00018857,2]
[376083947,1753857041170,-462.28814118,0.00018857,2]
[376083949,1753857041179,-463.56578905,0.00018857,2]
[376083951,1753857041191,-460.0,0.00018857,2]
[376083953,1753857041201,-468.76365395,0.00018857,2]
[376083955,1753857041210,-460.0,0.00018857,2]
[376083957,1753857041220,-266.3090274,0.00018857,2]
[376083959,1753857041231,-486.77210814,0.00018857,2]
[376083961,1753857041240,-462.4968254,0.00018857,2]
[376083963,1753857041250,-500.0,0.00018857,2]
[376083965,1753857041264,-500.0,0.00018857,2]
[376083967,1753857041273,-460.0,0.00018857,2]
[376083969,1753857041282,-460.0,0.00018857,2]
[376083971,1753857041291,-462.10381663,0.00018857,2]
[376083973,1753857041300,-460.0,0.00018857,2]
[376083975,1753857041310,-421.3151944,0.00018857,2]
[376083977,1753857041320,-460.0,0.00018857,2]
[376083979,1753857041329,-460.0,0.00018857,2]
[376083981,1753857041339,-462.33778623,0.00018857,2]
[376083983,1753857041349,-460.0,0.00018857,2]
[376083985,1753857041359,-460.0,0.00018857,2]
[376083987,1753857041368,-460.0,0.00018857,2]
[376083989,1753857041377,-460.0,0.00018857,2]
[376083991,1753857041387,-460.0,0.00018857,2]
[376083993,1753857041396,-460.0,0.00018857,2]
[376083995,1753857041405,-430.43764172,0.00018857,2]
[376083997,1753857041416,-460.0,0.00018857,2]
[376083999,1753857041426,-418.9143448,0.00018857,2]
[376084001,1753857041435,-462.20266952,0.00018857,2]
[376084003,1753857041444,-460.0,0.00018857,2]
[376084005,1753857041454,-460.0,0.00018857,2]
[376084007,1753857041464,-460.0,0.00018857,2]
[376084009,1753857041474,-460.0,0.00018857,2]
[376084011,1753857041483,-460.0,0.00018857,2]
[376084013,1753857041493,-460.0,0.00018857,2]
[376084015,1753857041502,-460.0,0.00018857,2]
[376084017,1753857041512,-500.0,0.00018857,2]
[376084019,1753857041522,-500.0,0.00018857,2]
[376084022,1753857041532,-460.0,0.00018857,2]
[376084024,1753857041541,-460.0,0.00018857,2]
[376084026,1753857041551,-460.0,0.00018857,2]
[376084028,1753857041560,-460.0,0.00018857,2]
[376084029,1753857041570,-463.07273112,0.00018857,2]
[376084031,1753857041579,-460.0,0.00018857,2]
[376084033,1753857041589,-460.0,0.00018857,2]
[376084035,1753857041599,-523.68401154,0.00018857,2]
[376084037,1753857041609,-460.0,0.00018857,2]
[376084039,1753857041618,-460.0,0.00018857,2]
[376084041,1753857041628,-460.0,0.00018857,2]
[376084043,1753857041637,-460.0,0.00018857,2]
[376084045,1753857041647,-460.0,0.00018857,2]
[376084048,1753857041658,-477.59828588,0.00018857,2]
[376084049,1753857041671,-460.0,0.00018857,2]
[376084051,1753857041681,-460.0,0.00018857,2]
[376084053,1753857041690,-460.0,0.00018857,2]
[376084056,1753857041700,-460.0,0.00018857,2]
[376084057,1753857041709,-460.0,0.00018857,2]
[376084060,1753857041718,-460.0,0.00018857,2]
[376084061,1753857041728,-460.0,0.00018857,2]
[376084064,1753857041737,-460.0,0.00018857,2]
[376084066,1753857041747,-460.0,0.00018857,2]
[376084067,1753857041756,-460.0,0.00018857,2]
[376084069,1753857041766,-1470.25,0.00018857,2]
[376084072,1753857041775,-460.0,0.00018857,2]
[376084074,1753857041788,-460.0,0.00018858,2]
[376084076,1753857041798,-461.47738379,0.00018858,2]
[376084078,1753857041807,-460.0,0.00018858,2]
[376084080,1753857041817,-541.34404419,0.00018858,2]
[376084082,1753857041826,-463.96873785,0.00018858,2]